fUSD/lending_fUSD_20241106
["ID","MTS","AMOUNT","RATE_DAILY","PERIOD"]
[341496718,1730924967317,-152.96455924,0.00027,2]
[341496719,1730924967337,-634.47710146,0.00027196,2]
[341496720,1730924967356,-150.0,0.00028074,2]
[341496721,1730924967375,-250.0,0.00028453,2]
[341496722,1730924967395,-250.0,0.00028553,2]
[341496723,1730924968526,329.44,0.00027397,10]
[341496749,1730925032116,-1000.0,0.00028774,2]
[341496750,1730925032127,-200.0,0.000288,2]
[341496751,1730925032136,-1059.61,0.00028985,2]
[341496752,1730925032146,-502.38843279,0.00029,3]
[341496753,1730925032156,-200.0,0.00029022,7]
[341496754,1730925032167,-428.25,0.00029028,2]
[341496755,1730925032177,-801.56,0.0002915,2]
[341496756,1730925032187,-3809.99156721,0.0002915,2]
[341496757,1730925032198,-7382.376725,0.0002915,2]
[341496758,1730925032209,-6127.228,0.0002915,2]
[341496759,1730925032221,-5545.5,0.0002915,2]
[341496760,1730925032232,-833.61806233,0.0002915,2]
[341496761,1730925032284,-7586.85564546,0.0002915,2]
[341496762,1730925032294,-385.68,0.00029185,30]
[341496763,1730925032303,-790.29,0.00029191,2]
[341496764,1730925032313,-1510.42176636,0.00029208,15]
[341496765,1730925032325,-334.94,0.00029308,2]
[341496766,1730925032335,-2000.0,0.00029341,2]
[341496767,1730925032344,-23900.0,0.00029342,2]
[341496768,1730925032354,-770.9,0.00029342,2]
[341496769,1730925032363,-253.0,0.00029429,2]
[341496770,1730925032373,-200.0,0.00029432,2]
[341496771,1730925032383,-1144.34,0.0002946,2]
[341496772,1730925032393,-150.37656632,0.000295,2]
[341496773,1730925032402,-153.68,0.00029877,2]
[341496774,1730925032413,-158.00360343,0.00029906,2]
[341496775,1730925032423,-6786.89113529,0.00029906,2]
[341496776,1730925032432,-500.0,0.00029973,5]
[341496777,1730925032442,-500.83095971,0.00029973,5]
[341496778,1730925032452,-163.08,0.0002999,3]
[341496779,1730925032463,-489.24,0.0002999,3]
[341496780,1730925032472,-274.53,0.0002999,10]
[341496782,1730925032482,-228.78,0.0002999,10]
[341496784,1730925032491,-500.0,0.00029999,2]
[341496786,1730925032501,-500.0,0.00029999,2]
[341496787,1730925032511,-500.0,0.00029999,2]
[341496789,1730925032521,-500.0,0.00029999,2]
[341496791,1730925032532,-197.72019972,0.00029999,2]
[341496793,1730925032541,-500.0,0.00029999,2]
[341496795,1730925032551,-110499.32574094,0.0003,2]
[341496797,1730925032563,-9288.51366335,0.0003,2]
[341496799,1730925032576,-7593.98869799,0.0003,2]
[341496800,1730925032600,-7009.83645,0.0003,2]
[341496801,1730925032634,-4184.085,0.0003,2]
[341496802,1730925032671,-24425.82052972,0.0003,2]
[341496803,1730925032751,-10558.09546886,0.0003,2]
[341496811,1730925038018,-285.35,0.0002914,2]
[341496813,1730925038027,-218.88155675,0.00029906,2]
[341496814,1730925038084,-76.76134347,0.00029906,2]
[341496815,1730925038096,-26.82346235,0.00029906,2]
[341496816,1730925038105,-285.35,0.00029963,2]
[341496817,1730925038114,-285.35,0.0002999,2]
[341496818,1730925038124,-57194.2550348,0.0003,2]
[341496819,1730925038293,-17184.55562623,0.0003,2]
[341496820,1730925038304,-618.37302107,0.0003,2]
[341496821,1730925038352,-167.26,0.00030006,2]
[341496822,1730925038361,-192.75,0.0003009,120]
[341496823,1730925038371,-174.14,0.00030137,2]
[341496824,1730925038380,-1510.42176628,0.00030215,15]
[341496825,1730925038389,-500.0,0.000303,2]
[341496826,1730925038398,-143.76623372,0.000303,5]
[341496827,1730925038560,-356.23376628,0.000303,5]
[341496828,1730925038569,-158.00360339,0.00030405,2]
[341496830,1730925038581,-816.88,0.00030499,2]
[341496832,1730925038590,-37.4158166,0.00030499,30]
[341496856,1730925040094,-962.5841834,0.00030499,30]
[341496857,1730925040103,-500.0,0.00030549,2]
[341496858,1730925040114,-157.56,0.00030549,2]
[341496859,1730925040125,-508.98,0.00030549,120]
[341496860,1730925040137,-34.26520674,0.00030663,2]
[341496861,1730925040150,-235.52479326,0.00030663,2]
[341496862,1730925040161,-440.46620674,0.00030773,3]
[341496863,1730925040189,-376.41379326,0.00030773,3]
[341496864,1730925040199,-493.80158101,0.000308,3]
[341496865,1730925040915,-1905.19350259,0.000307,3]
[341496866,1730925040973,-897.80649741,0.000307,3]
[341496867,1730925040982,-1804.40566536,0.000308,3]
[341496897,1730925043055,-5633.10000002,0.000308,3]
[341496901,1730925043066,-693.85100039,0.000308,3]
[341496925,1730925043237,-2923.84175322,0.000308,3]
[341496926,1730925043247,-158.00360339,0.00030903,2]
[341496927,1730925043257,-409.2514591,0.00031,32]
[341496929,1730925043266,-500.0,0.00031,30]
[341496931,1730925043275,-500.0,0.00031,30]
[341496933,1730925043284,-500.0,0.00031,30]
[341496935,1730925043295,-500.0,0.00031,30]
[341496936,1730925043304,-500.0,0.00031,30]
[341496937,1730925043314,-500.0,0.00031,30]
[341496938,1730925043323,-500.0,0.00031,30]
[341496939,1730925043332,-558.12344265,0.00031,30]
[341496940,1730925043342,-500.0,0.00031,30]
[341496941,1730925043351,-676.68545989,0.00031,30]
[341496942,1730925043360,-504.96841451,0.00031,30]
[341496943,1730925043369,-500.0,0.00031,30]
[341496944,1730925043379,-500.0,0.00031,30]
[341496945,1730925043390,-500.0,0.00031,30]
[341496946,1730925043399,-500.0,0.00031,30]
[341496947,1730925043409,-642.62032173,0.00031,30]
[341496948,1730925043418,-502.69883713,0.00031,30]
[341496949,1730925043427,-500.0,0.00031,30]
[341496950,1730925043437,-500.0,0.00031,30]
[341496951,1730925043446,-609.73759369,0.00031,30]
[341496952,1730925043456,-500.0,0.00031,30]
[341496953,1730925043465,-500.0,0.00031,30]
[341496954,1730925043475,-500.0,0.00031,30]
[341496955,1730925043483,-500.0,0.00031,30]
[341496956,1730925043493,-500.0,0.00031,30]
[341496957,1730925043502,-740.29835407,0.00031,30]
[341496958,1730925043512,-323.21453373,0.00031,5]
[341496959,1730925043522,-2284.0,0.00031,3]
[341496960,1730925043531,-816.88,0.00031047,4]
[341496961,1730925043540,-500.0,0.00031071,5]
[341496962,1730925043550,-1510.42176628,0.00031222,15]
[341496963,1730925043560,-2491.0,0.00031265,2]
[341496964,1730925043569,-400.0,0.000313,11]
[341496965,1730925043579,-816.88,0.00031321,5]
[341496966,1730925043590,-326.16,0.0003136,3]
[341496967,1730925043599,-900.0,0.000314,11]
[341496968,1730925043608,-158.00360339,0.00031402,2]
[341496969,1730925043618,-748.15170336,0.0003143,4]
[341496970,1730925043628,-165.39,0.00031465,2]
[341496971,1730925043637,-255.83115802,0.000315,2]
[341496972,1730925043647,-11549.0,0.000315,5]
[341496973,1730925043656,-1300.0,0.000315,11]
[341496974,1730925043666,-153.68,0.00031557,2]
[341496975,1730925043675,-816.88,0.00031595,6]
[341496976,1730925043684,-1800.0,0.000316,11]
[341496977,1730925043693,-1006.0,0.000316,2]
[341496978,1730925043702,-500.0,0.0003167,2]
[341496979,1730925043712,-1755.4,0.0003168,2]
[341496980,1730925043721,-2200.0,0.000317,11]
[341496981,1730925043730,-1144.34,0.00031723,2]
[341496982,1730925043739,-385.68,0.00031769,30]
[341496983,1730925043748,-400.0,0.000318,11]
[341496984,1730925043757,-203.19798515,0.000318,4]
[341496985,1730925043766,-624.3908,0.00031839,2]
[341496986,1730925043775,-816.88,0.00031869,7]
[341496987,1730925043784,-1000.0,0.00031869,30]
[341496988,1730925043793,-150.110705,0.00031898,2]
[341496989,1730925043802,-150.110705,0.00031898,3]
[341496990,1730925043811,-150.110705,0.00031898,4]
[341496991,1730925043821,-150.110705,0.00031898,5]
[341496992,1730925043832,-157.38910137,0.00031899,2]
[341496993,1730925043841,-200.0,0.000319,2]
[341496994,1730925043851,-40144.1048,0.000319,2]
[341496995,1730925043860,-500.0,0.000319,2]
[341496996,1730925043869,-245000.0,0.000319,2]
[341496997,1730925043879,-24272.1817,0.000319,2]
[341496998,1730925043888,-400.0,0.000319,11]
[341496999,1730925043898,-1485.25375654,0.000319,2]
[341497000,1730925043907,-275.37241666,0.000319,2]
[341497001,1730925043916,-158.00360339,0.000319,2]
[341497002,1730925043926,-548.99500072,0.00031973,5]
[341497003,1730925043936,-500.0,0.00031973,5]
[341497004,1730925043945,-271.45357534,0.00031973,5]
[341497005,1730925043955,-504.87382245,0.0003199,15]
[341497006,1730925043964,-1588.7963598,0.00031993,2]
[341497007,1730925043973,-7292.7345867,0.00031993,2]
[341497008,1730925043983,-135608.0683226,0.00031997,2]
[341497009,1730925043993,-687.70341159,0.00031998,2]
[341497010,1730925044002,-17206.63243136,0.00031999,30]
[341497011,1730925044011,-1000.0,0.00031999,2]
[341497012,1730925044021,-1000.0,0.00031999,2]
[341497013,1730925044031,-871.24773,0.00031999,2]
[341497014,1730925044040,-355148.2440794,0.00032,3]
[341497016,1730925044062,-758.8,0.00032,3]
[341497017,1730925044073,-35279.03021237,0.00032,3]
[341497019,1730925044108,-0.59654058,0.00032,3]
[341497020,1730925045221,160.37,0.00025233,2]
[341497036,1730925046083,-203.06201328,0.000287,2]
[341497038,1730925046097,-67.6799656,0.00030612,2]
[341497042,1730925046121,-132.3200344,0.00030612,2]
[341497044,1730925046132,-203.19798515,0.000319,4]
[341497046,1730925046143,-14835.88198045,0.00032,3]
[341497095,1730925046945,-18292.62569783,0.00032,3]
[341497099,1730925046970,-5120.3475,0.00032,3]
[341497101,1730925046982,-1897.775,0.00032,3]
[341497104,1730925047006,-15172.09779998,0.00032,3]
[341497106,1730925047020,-818086.78313061,0.00032,3]
[341497108,1730925047029,-24847.12530911,0.00032,3]
[341497110,1730925047039,-884119.98273037,0.00032,5]
[341497115,1730925047083,-15918.3460148,0.00032,5]
[341497124,1730925047169,-13841.75,0.00032,5]
[341497128,1730925047200,-20.0270549,0.00032,5]
[341497210,1730925048129,-60684.79999997,0.00032,5]
[341497710,1730925140071,156.39,0.00015342,2]
[341497714,1730925270155,250.0,0.00021,2]
[341497719,1730925611071,1102.46,0.00023,30]
[341497721,1730925697284,158.85,0.00015342,2]
[341497724,1730925943148,-300.0,0.00023,2]
[341497725,1730925943167,-515.67219282,0.00024,5]
[341497726,1730925945096,-155.40403946,0.00024,5]
[341497727,1730926028134,-420.45501832,0.000239,2]
[341497728,1730926042139,-295.09680619,0.00024,5]
[341497729,1730926046627,-228.6656882,0.00024,5]
[341497730,1730926046648,-500.0,0.00024932,2]
[341497731,1730926046668,-350.0,0.00025,2]
[341497732,1730926046688,-189.46996798,0.00026567,2]
[341497733,1730926150150,-823.97003202,0.00026567,2]
[341497734,1730926150170,-400.0,0.00027,2]
[341497735,1730926150189,-150.0,0.00027726,2]
[341497736,1730926150209,-1277.72,0.00027757,2]
[341497737,1730926150228,-150.0,0.00028023,2]
[341497738,1730926150248,-250.0,0.00028055,2]
[341497739,1730926150271,-154.2,0.00028056,120]
[341497740,1730926150291,-167.26,0.00028064,2]
[341497741,1730926150311,-250.0,0.00028082,2]
[341497742,1730926150645,-1009.22,0.0002811,2]
[341497743,1730926150667,-800.0,0.00028111,2]
[341497744,1730926150687,-200.0,0.00028202,7]
[341497745,1730926150708,-1252.20464398,0.00028203,2]
[341497746,1730926155109,-25.51535602,0.00028203,2]
[341497747,1730926155129,-347.11,0.00028304,30]
[341497748,1730926155149,-10710.47,0.00028304,2]
[341497749,1730926155168,-200.0,0.00028419,2]
[341497750,1730926155188,-279.11,0.00028488,2]
[341497751,1730926155208,-483.75,0.00028551,2]
[341497752,1730926155228,-313.44,0.00028603,2]
[341497753,1730926155248,-1277.72,0.00028649,2]
[341497754,1730926170366,243.80161577,0.000269,2]
[341497755,1730926179550,23900.0,0.00028794,2]
[341497757,1730926221708,215.83,0.00028756,2]
[341497758,1730926222706,157.73,0.00015342,2]
[341497760,1730926232182,-1013.44,0.00028831,2]
[341497761,1730926232191,-200.0,0.00028835,2]
[341497762,1730926232200,-241.87,0.00028869,2]
[341497763,1730926232212,-176.79,0.00028869,2]
[341497764,1730926232221,-450.0,0.00029,2]
[341497765,1730926232230,-166.95,0.00029052,2]
[341497766,1730926232239,-1277.72,0.00029095,2]
[341497767,1730926232248,-200.0,0.00029226,2]
[341497768,1730926232258,-4237.03,0.00029226,2]
[341497769,1730926232267,-150.03,0.00029245,2]
[341497770,1730926232589,-150.03,0.00029282,2]
[341497771,1730926232603,-150.03,0.00029318,2]
[341497772,1730926232612,-150.03,0.00029355,2]
[341497773,1730926232622,-150.03,0.00029391,2]
[341497774,1730926232631,-250.0,0.00029407,2]
[341497775,1730926232640,-150.03,0.00029428,2]
[341497776,1730926232649,-150.03,0.00029464,2]
[341497777,1730926232658,-150.03,0.00029501,2]
[341497778,1730926232667,-150.03,0.00029537,2]
[341497779,1730926232676,-1277.72,0.00029541,2]
[341497780,1730926232685,-238.61,0.0002989,120]
[341497782,1730926232694,-1717.92285121,0.000299,15]
[341497783,1730926232703,-1277.72,0.00029987,2]
[341497784,1730926232715,-465.88,0.0002999,3]
[341497785,1730926232724,-500.0,0.00029999,2]
[341497786,1730926232733,-500.0,0.00029999,2]
[341497787,1730926232742,-379.34815612,0.00029999,2]
[341497788,1730926232751,-500.0,0.00029999,2]
[341497789,1730926232760,-500.0,0.00029999,2]
[341497790,1730926232769,-500.0,0.00029999,2]
[341497791,1730926232778,-424.98349481,0.00029999,2]
[341497792,1730926232787,-637.76690355,0.00029999,2]
[341497793,1730926232797,-500.0,0.00029999,2]
[341497794,1730926232806,-500.0,0.00029999,2]
[341497795,1730926232815,-500.0,0.00029999,2]
[341497796,1730926232824,-500.0,0.00029999,2]
[341497797,1730926232833,-500.0,0.00029999,2]
[341497798,1730926232842,-500.0,0.00029999,2]
[341497799,1730926232851,-500.0,0.00029999,2]
[341497800,1730926232860,-500.0,0.00029999,2]
[341497801,1730926232869,-500.0,0.00029999,2]
[341497802,1730926232878,-3799.69171076,0.0003,2]
[341497803,1730926232890,-5347.16080006,0.0003,2]
[341497804,1730926232901,-2275.93278,0.0003,2]
[341497809,1730926233095,-357.75100366,0.0003,2]
[341497813,1730926238196,-102.54235475,0.0003,2]
[341497814,1730926238492,-17.26711559,0.0002999,10]
[341497815,1730926238505,-423.78288441,0.0002999,10]
[341497816,1730926238515,-56182.19071711,0.0003,2]
[341497817,1730926238631,-408.0085986,0.0003,2]
[341497818,1730926238643,-591.9914014,0.0003,2]
[341497819,1730926238705,-2653.64885436,0.0003,2]
[341497820,1730926238718,-1234.41276668,0.0003,2]
[341497821,1730926238729,-997.16355036,0.0003,2]
[341497914,1730926240414,-652.32,0.0002999,3]
[341497915,1730926240423,-4233.65181763,0.0003,2]
[341497916,1730926240473,-371.94000001,0.0003,2]
[341498140,1730926243252,-641.67912649,0.00029999,2]
[341498141,1730926243262,-150.02,0.0003,2]
[341498142,1730926243272,-150.02,0.0003,2]
[341498143,1730926243281,-150.02,0.0003,2]
[341498144,1730926243291,-150.02,0.0003,2]
[341498145,1730926243300,-150.02,0.0003,2]
[341498146,1730926243310,-150.02,0.0003,2]
[341498147,1730926243319,-150.02,0.0003,2]
[341498148,1730926243329,-150.02,0.0003,2]
[341498149,1730926243338,-150.02,0.0003,2]
[341498150,1730926243347,-6750.78380268,0.0003,2]
[341498151,1730926243357,-189844.0,0.0003,2]
[341498152,1730926243366,-214.08541939,0.00030137,60]
[341498153,1730926243375,-215.83,0.00030193,2]
[341498154,1730926243385,-1277.72,0.00030433,2]
[341498155,1730926243394,-150.02,0.0003079,2]
[341498156,1730926243403,-11549.0,0.000308,3]
[341498157,1730926243413,-1277.72,0.00030879,2]
[341498158,1730926243423,-347.11,0.00030888,30]
[341498159,1730926243434,-1236.0,0.000309,3]
[341498160,1730926243446,-229.87522775,0.00030903,2]
[341498161,1730926243455,-1717.92285115,0.00030989,15]
[341498162,1730926243466,-500.0,0.00031,2]
[341498163,1730926243477,-500.0,0.00031,30]
[341498164,1730926243486,-500.0,0.00031,30]
[341498165,1730926243496,-500.0,0.00031,30]
[341498166,1730926243505,-500.0,0.00031,30]
[341498167,1730926243517,-500.0,0.00031,30]
[341498168,1730926243528,-500.0,0.00031,30]
[341498169,1730926243538,-500.0,0.00031,30]
[341498170,1730926243548,-500.0,0.00031,30]
[341498171,1730926243558,-500.0,0.00031,30]
[341498172,1730926243567,-500.0,0.00031,30]
[341498173,1730926243576,-500.0,0.00031,30]
[341498174,1730926243586,-500.0,0.00031,30]
[341498175,1730926243595,-1013.44,0.00031095,2]
[341498176,1730926243605,-182.13,0.00031275,2]
[341498177,1730926243616,-182.13,0.00031275,2]
[341498178,1730926243626,-8579.42458509,0.00031285,2]
[341498179,1730926243680,-136603.67411491,0.00031285,2]
[341498180,1730926243689,-11549.0,0.000315,5]
[341498181,1730926243699,-154.2,0.00031563,120]
[341498182,1730926243709,-800.0,0.00031624,2]
[341498183,1730926243720,-215.83,0.00031631,2]
[341498184,1730926243730,-150.110705,0.00031898,5]
[341498185,1730926243740,-150.110705,0.00031898,4]
[341498186,1730926243750,-150.110705,0.00031898,3]
[341498187,1730926243759,-150.110705,0.00031898,2]
[341498188,1730926243768,-150.110705,0.00031898,6]
[341498189,1730926243778,-150.110705,0.00031898,7]
[341498190,1730926243788,-200.0,0.000319,2]
[341498191,1730926243798,-183.5816111,0.000319,2]
[341498192,1730926243807,-990.16917104,0.000319,2]
[341498193,1730926243816,-320.50226344,0.000319,2]
[341498194,1730926243826,-182.13,0.00031963,2]
[341498195,1730926243835,-554.52318383,0.00031973,5]
[341498196,1730926243845,-500.0,0.00031973,5]
[341498197,1730926243855,-182.13,0.0003199,2]
[341498198,1730926243863,-182.13,0.0003199,2]
[341498199,1730926243873,-500.0,0.00031998,2]
[341498200,1730926243882,-620.7389867,0.00031998,2]
[341498201,1730926243892,-1000.0,0.00031999,30]
[341498202,1730926243901,-796.68344,0.00031999,2]
[341498203,1730926243911,-500.0,0.00031999,2]
[341498204,1730926243920,-500.0,0.00031999,2]
[341498205,1730926243930,-500.0,0.00031999,2]
[341498206,1730926243940,-331.84108915,0.00031999,2]
[341498207,1730926243950,-500.0,0.00031999,2]
[341498208,1730926243959,-500.0,0.00031999,2]
[341498209,1730926243981,-500.0,0.00031999,2]
[341498210,1730926244025,-309.31605992,0.00031999,2]
[341498211,1730926244127,-218477.58461901,0.00032,3]
[341498212,1730926245009,-90.63024372,0.00032,3]
[341498213,1730926245020,-451.35589453,0.00032,3]
[341498214,1730926245032,-9810.86995606,0.00032,3]
[341498215,1730926245156,-11985.73949989,0.00032,3]
[341498219,1730926246456,-3781.7622388,0.00032,3]
[341498220,1730926246541,-140.90396182,0.00032,3]
[341498221,1730926247707,-9965.46139073,0.00032,3]
[341498222,1730926247719,-75775.13110009,0.00032,3]
[341498223,1730926247729,-374.24,0.00032,3]
[341498224,1730926247740,-2816.74999975,0.00032,3]
[341498225,1730926247751,-15098.4,0.00032,3]
[341498226,1730926247790,-600224.35966668,0.00032,3]
[341498227,1730926247799,-18635.34398183,0.00032,3]
[341498228,1730926247808,-62173.8296378,0.00032,5]
[341498238,1730926298586,150.0,0.00018123,2]
[341498239,1730926339778,1500.0,0.00019317,2]
[341498240,1730926339833,1500.0,0.00019447,2]
[341498241,1730926339897,1500.0,0.00019233,2]
[341498242,1730926339949,1500.0,0.00019264,2]
[341498243,1730926340478,1500.0,0.00019329,2]
[341498244,1730926340564,1500.0,0.0001931,2]
[341498245,1730926340615,1500.0,0.00019264,2]
[341498246,1730926340659,1500.0,0.00019314,2]
[341498247,1730926340939,1500.0,0.00019379,2]
[341498248,1730926341014,1500.0,0.00019399,2]
[341498249,1730926341082,1500.0,0.00019248,2]
[341498250,1730926341174,1500.0,0.00019391,2]
[341498251,1730926341606,784.45563377,0.00019227,2]
[341498266,1730926725642,161.36,0.00015342,2]
[341498268,1730926908157,250.0,0.00021,2]
[341498269,1730926973065,-175.0,0.00030645,120]
[341498270,1730926973153,-113.42,0.00030645,120]
[341498276,1730927076125,175.0,0.00030423,120]
[341498277,1730927227170,-300.0,0.00023,2]
[341498278,1730927227190,-500.0,0.00024932,2]
[341498279,1730927227213,-350.0,0.00025,2]
[341498280,1730927227234,-400.0,0.00027,2]
[341498281,1730927227254,-615.48750183,0.00028659,2]
[341498282,1730927241803,-169.952733,0.00027397,2]
[341498283,1730927241823,-169.952733,0.00027397,2]
[341498284,1730927241841,-168.723121,0.00027397,2]
[341498285,1730927241862,-252.682177,0.00027397,2]
[341498286,1730927241883,-252.682177,0.00027397,2]
[341498287,1730927241904,-169.952733,0.00027671,2]
[341498288,1730927241929,-169.952733,0.00027671,2]
[341498289,1730927241950,-252.682177,0.00027671,2]
[341498290,1730927241973,-252.682177,0.00027671,2]
[341498291,1730927241992,-169.952733,0.00027945,2]
[341498292,1730927242011,-169.952733,0.00027945,2]
[341498293,1730927242030,-169.952733,0.00028219,2]
[341498294,1730927242049,-169.952733,0.00028493,2]
[341498295,1730927242068,-403.41249817,0.00028659,2]
[341498296,1730927242087,-169.952733,0.00028767,2]
[341498297,1730927242106,-200.0,0.000288,2]
[341498298,1730927242124,-802.34,0.000288,2]
[341498299,1730927242144,-1478.84,0.000288,2]
[341498300,1730927242162,-999.99,0.000288,2]
[341498301,1730927242180,-450.0,0.00029,2]
[341498302,1730927242199,-770.9,0.00029,2]
[341498303,1730927242220,-169.952733,0.00029041,2]
[341498304,1730927242239,-143.27123549,0.00029315,2]
[341498305,1730927249096,-159.940041,0.00027397,2]
[341498306,1730927249115,-252.682177,0.00027945,2]
[341498307,1730927249135,-252.682177,0.00027945,2]
[341498308,1730927249154,-252.682177,0.00028219,2]
[341498309,1730927249173,-252.682177,0.00028493,2]
[341498310,1730927249192,-252.682177,0.00028767,2]
[341498311,1730927249211,-252.682177,0.00029041,2]
[341498312,1730927249233,-26.68149751,0.00029315,2]
[341498313,1730927249251,-252.682177,0.00029315,2]
[341498314,1730927249271,-169.952733,0.00029589,2]
[341498315,1730927249289,-252.682177,0.00029589,2]
[341498316,1730927249309,-169.952733,0.00029863,2]
[341498317,1730927249327,-252.682177,0.00029863,2]
[341498318,1730927249349,-1303.05,0.00029946,2]
[341498319,1730927249369,-169.952733,0.00030136,2]
[341498320,1730927249388,-252.682177,0.00030136,2]
[341498321,1730927249409,-250.0,0.00030201,2]
[341498322,1730927249429,-159.705,0.0003035,2]
[341498323,1730927249447,-169.952733,0.0003041,2]
[341498324,1730927249466,-252.682177,0.0003041,2]
[341498325,1730927249488,-15.89,0.00030423,120]
[341498326,1730927249507,-1303.05,0.00030427,2]
[341498327,1730927249526,-790.29,0.00030437,2]
[341498328,1730927249547,-9554.5565,0.00030534,2]
[341498329,1730927249567,-200.0,0.00030552,7]
[341498330,1730927249587,-250.0,0.00030586,2]
[341498331,1730927249606,-200.0,0.00030587,2]
[341498332,1730927249626,-241.87,0.00030601,2]
[341498333,1730927249646,-2000.0,0.00030632,2]
[341498334,1730927249665,-553.0,0.00030632,2]
[341498335,1730927249686,-23900.0,0.00030634,2]
[341498336,1730927249706,-1965.13,0.00030658,2]
[341498337,1730927249728,-7586.85,0.00030658,2]
[341498338,1730927249748,-300.0,0.00030682,2]
[341498339,1730927249769,-216.62,0.00030684,2]
[341498340,1730927249790,-169.952733,0.00030684,2]
[341498341,1730927249812,-250.0,0.00030718,2]
[341498342,1730927249835,-520.0,0.00030757,2]
[341498343,1730927249858,-516.59,0.00030835,120]
[341498344,1730927249878,-670.89,0.00030854,2]
[341498345,1730927249898,-164.77,0.00030866,2]
[341498346,1730927249917,-1303.05,0.00030908,2]
[341498347,1730927249937,-1018.9,0.00030922,2]
[341498348,1730927249957,-405.39179643,0.00031,2]
[341498349,1730927253163,-194.08941418,0.00030684,2]
[341498351,1730927346329,158.55,0.00015342,2]
[341498356,1730927432336,-917.01,0.00028838,2]
[341498357,1730927432348,-814.4,0.00030034,2]
[341498358,1730927432358,-814.4,0.00030516,2]
[341498359,1730927432369,-1000.0,0.00030601,2]
[341498360,1730927432378,-58.59276282,0.00030684,2]
[341498361,1730927432387,-5042.0,0.00030739,2]
[341498362,1730927432396,-250.0,0.00030756,2]
[341498363,1730927432405,-15210.10790482,0.00030756,2]
[341498364,1730927432414,-162.07,0.00030768,2]
[341498365,1730927432424,-167.26,0.00030777,2]
[341498366,1730927432433,-200.0,0.00030778,2]
[341498367,1730927432443,-23900.0,0.00030785,2]
[341498368,1730927432452,-250.0,0.00030787,2]
[341498369,1730927432461,-814.4,0.00030999,2]
[341498370,1730927432471,-94.60820357,0.00031,2]
[341498371,1730927432480,-500.0,0.00031,30]
[341498372,1730927432489,-500.0,0.00031,30]
[341498373,1730927432498,-500.0,0.00031,30]
[341498374,1730927432508,-500.0,0.00031,30]
[341498375,1730927432517,-500.0,0.00031,30]
[341498376,1730927432526,-500.0,0.00031,30]
[341498377,1730927432535,-347.57,0.00031014,30]
[341498378,1730927432544,-917.01,0.00031102,2]
[341498379,1730927432554,-159.417,0.00031192,28]
[341498380,1730927432563,-166.76,0.0003139,2]
[341498381,1730927432572,-814.4,0.00031481,2]
[341498382,1730927432582,-169.952733,0.00031506,2]
[341498383,1730927432591,-252.682177,0.00031506,2]
[341498390,1730927432894,-3832.2835,0.00031514,2]
[341498391,1730927432913,-3377.0,0.00031614,2]
[341498392,1730927432923,-150.0,0.00031729,2]
[341498393,1730927432933,-150.0,0.00031729,2]
[341498394,1730927432943,-150.0,0.00031732,2]
[341498395,1730927432956,-150.0,0.00031733,2]
[341498396,1730927432965,-151.41146315,0.00031734,2]